{"text_format":"1","workbook":"xlsx","n_sheets":1,"sheets":["CATALOGO"],"not_rendered":{"charts":0,"images":1,"macros":1,"external_links":0,"defined_names":2,"comments":0,"pivot_tables":0},"unopened":[],"bounds":{"document_bytes":16777216,"sheet_cells":100000,"rows_first":2000,"rows_last":500,"rows_between":2000,"halvings":0,"cell_chars":16384,"cell_head_chars":4096},"cells_cut":0,"cells_raw":0,"read":"whole","date_system":"1900"}

{"sheet":"CATALOGO","index":0,"n_rows":344,"n_cols":9,"rows_kept":344,"cut":false,"hidden":false,"merged":[[0,3,0,8],[1,2,2,2],[1,3,1,6],[1,7,1,8],[2,3,3,6],[2,7,2,8],[3,7,3,8],[7,0,8,0],[7,1,8,1],[7,2,8,2],[7,3,8,3],[7,4,8,4],[7,5,8,5],[4,3,4,6],[4,7,4,8],[5,0,5,2],[5,3,5,4],[5,5,5,8],[6,0,6,8],[14,5,14,6],[15,5,15,6],[16,5,16,6],[17,5,17,6],[18,5,18,6],[19,5,19,6],[7,6,8,6],[7,7,8,7],[7,8,8,8],[10,4,10,8],[11,5,11,6],[13,5,13,6],[12,5,12,8],[26,5,26,6],[27,5,27,6],[28,5,28,6],[29,5,29,6],[30,5,30,6],[31,5,31,6],[20,5,20,6],[21,5,21,6],[22,5,22,6],[23,5,23,6],[24,5,24,6],[25,5,25,6],[48,0,48,1],[49,0,49,1],[66,4,66,6],[70,0,71,4],[70,5,71,8],[72,0,72,1],[32,5,32,6],[33,5,33,6],[35,5,35,7],[36,5,36,7],[38,3,38,8],[46,0,47,4],[46,5,47,8],[107,0,108,4],[107,5,108,8],[110,3,110,6],[112,0,112,1],[119,3,119,6],[121,0,121,1],[74,3,74,6],[76,0,76,1],[91,0,92,4],[91,5,92,8],[99,2,99,6],[101,0,101,1],[146,0,147,4],[146,5,147,8],[149,2,149,6],[151,0,151,1],[167,0,168,4],[167,5,168,8],[123,0,124,4],[123,5,124,8],[127,3,127,6],[129,0,129,1],[137,5,137,6],[139,0,139,1],[203,3,203,6],[205,0,205,1],[208,3,208,6],[210,0,211,4],[210,5,211,8],[212,0,212,1],[183,3,183,6],[185,0,185,1],[188,0,189,4],[188,5,189,8],[195,3,195,6],[197,0,197,1],[237,0,237,1],[246,0,247,4],[246,5,247,8],[253,3,253,6],[255,0,255,1],[258,3,258,6],[214,3,214,6],[217,0,217,1],[225,3,225,6],[227,0,227,1],[229,3,229,6],[235,0,236,4],[235,5,236,8],[343,0,344,4],[343,5,344,8],[277,0,277,1],[283,3,283,6],[290,0,291,4],[290,5,291,8],[292,0,292,1],[296,3,296,6],[260,0,260,1],[264,3,264,6],[265,0,266,4],[265,5,266,8],[267,0,267,1],[275,3,275,6]]}
[null,null,null,"EMPRESA: "]
[null,null,null,"LICITACIÓN No.:  UMSNH/FAM2016/LPE-005/2017",null,null,null,"FECHA:"]
[null,null,null,"DESCRIPCIÓN DE LA OBRA: Accesibilidad y Control de Espacios Académicos para la Seguridad del Campus, Campus Universitario (3era Etapa).  "]
[null,null,null,null,null,null,null,"HOJA:"]
[null,null,"MORELIA, MICHOACÁN.  ","UBICACIÓN DE LA OBRA: Morelia, Municipio de Morelia."]
["MONTO TOTAL DE LA PROPOSICIÓN SIN I.V.A.:",null,null,{"$f":"I35","v":0},null,"(MONTO TOTAL DE LA PROPOSICIÓN SIN I.V.A. Y CON LETRA)"]
["CATÁLOGO DE CONCEPTOS"]
["No.","Clave","DESCRIPCIÓN DEL CONCEPTO","Unidad","Cantidad","Precio unitario con letra","Precio Unitario","Importe en ($)","% de incidencia"]
[]
[]
[null,null,null,null," Accesibilidad y Control de Espacios Académicos para la Seguridad del Campus, Campus Universitario (3era Etapa)"]
[null,null,null,null,"PARTIDA","RESUMEN",null,"% de incidencia","SUBTOTAL"]
[null,null,null,null,"FRENTE 1","CONSTRUCCIÓN DE ÁGORA Y PLAZA DE ACCESO PRINCIPAL"]
[null,null,null,null,{"$f":"A50","v":"PAR0001"},{"$f":"C50","v":"DEMOLICIONES Y DESMONTAJES"},null,"%",{"$f":"H67","v":0}]
[null,null,null,null,{"$f":"A73","v":"PAR0002"},{"$f":"C73","v":" PRELIMINARES"},null,"%",{"$f":"H75","v":0}]
[null,null,null,null,{"$f":"A77","v":"PAR0003"},{"$f":"C77","v":"CIMENTACIÓN"},null,"%",{"$f":"H100","v":0}]
[null,null,null,null,{"$f":"A102","v":"PAR0004"},{"$f":"C102","v":" ALBAÑILERÍA"},null,"%",{"$f":"H111","v":0}]
[null,null,null,null,{"$f":"A113","v":"PAR0005"},{"$f":"C113","v":"ESTRUCTURA"},null,"%",{"$f":"H120","v":0}]
[null,null,null,null,{"$f":"A122","v":"PAR0006"},{"$f":"C122","v":"ESTRUCTURA METÁLICA"},null,"%",{"$f":"H128","v":0}]
[null,null,null,null,{"$f":"A130","v":"PAR0007"},{"$f":"C130","v":"INSTALACIÓN HIDRÁULICA"},null,"%",{"$f":"H138","v":0}]
[null,null,null,null,{"$f":"A140","v":"PAR0008"},{"$f":"C140","v":"INSTALACIÓN SANITARIA"},null,"%",{"$f":"H150","v":0}]
[null,null,null,null,{"$f":"A152","v":"PAR0009"},{"$f":"C152","v":"INSTALACIÓN ELÉCTRICA E ILUMINACIÓN"},null,"%",{"$f":"H184","v":0}]
[null,null,null,null,{"$f":"A186","v":"PAR0010"},{"$f":"C186","v":"INSTALACIÓN DE VOZ Y DATOS"},null,"%",{"$f":"H196","v":0}]
[null,null,null,null,{"$f":"A198","v":"PAR0011"},{"$f":"C198","v":"ACABADOS Y RECUBRIMIENTOS"},null,"%",{"$f":"H204","v":0}]
[null,null,null,null,{"$f":"A206","v":"PAR0012"},{"$f":"C206","v":" ALUMINIO, VIDRIOS, DOMOS Y POLICARBONATO"},null,"%",{"$f":"H209","v":0}]
[null,null,null,null,{"$f":"A213","v":"PAR0013"},{"$f":"C213","v":" TABLEROS DE YESO Y TABLACEMENTO"},null,"%",{"$f":"H215","v":0}]
[null,null,null,null,{"$f":"A218","v":"PAR0014"},{"$f":"C218","v":"COLOCACIONES"},null,"%",{"$f":"H226","v":0}]
[null,null,null,null,{"$f":"A228","v":"PAR0015"},{"$f":"C228","v":"SEÑALÉTICA"},null,"%",{"$f":"H230","v":0}]
[null,null,null,null,{"$f":"A238","v":"PAR0016"},{"$f":"C238","v":"HERRERÍA"},null,"%",{"$f":"H254","v":0}]
[null,null,null,null,{"$f":"A256","v":"PAR0017"},{"$f":"C256","v":"CARPINTERÍA"},null,"%",{"$f":"H259","v":0}]
[null,null,null,null,{"$f":"A261","v":"PAR0018"},{"$f":"C261","v":"TERRACERÍAS"},null,"%",{"$f":"H265","v":0}]
[null,null,null,null,{"$f":"A268","v":"PAR0019"},{"$f":"C268","v":"PAVIMENTOS"},null,"%",{"$f":"H276","v":0}]
[null,null,null,null,{"$f":"A278","v":"PAR0020"},{"$f":"C278","v":" JARDINERÍA"},null,"%",{"$f":"H284","v":0}]
[null,null,null,null,{"$f":"A293","v":"PAR0021"},{"$f":"C293","v":"LIMPIEZAS"},null,"%",{"$f":"H297","v":0}]
[null,null,null,null,null,null,null,"SUBTOTAL:",{"$f":"SUM(I14:I34)","v":0}]
[null,null,null,null,null,"I.V.A.:",null,null,{"$f":"ROUND(I35*0.16,2)","v":0}]
[null,null,null,null,null,"TOTAL:",null,null,{"$f":"I35+I36","v":0}]
[]
[null,null,null,"(MONTO TOTAL DE LA PROPOSICIÓN CON LETRA)"]
[]
[]
[]
[]
[]
[]
[]
["Nombre de la empresa",null,null,null,null,"Representante legal"]
[]
["FRENTE 1",null,"CONSTRUCCIÓN DE ÁGORA Y PLAZA DE ACCESO PRINCIPAL"]
["PAR0001",null,"DEMOLICIONES Y DESMONTAJES"]
[1,"E04-021","DEMOLICIÓN de MURO de TABIQUE de barro recocido o TABICÓN de concreto de 14 cm de espesor a cualquier altura y nivel, incluye aplanados, cadenas y castillos de concreto armado y acarreo de material producto de la demolición a cualquier distancia.","m2",280.69,null,null,{"$f":"ROUND(E51*G51,2)","v":0},"%"]
[2,"E04-0785","DESMONTAJE DE REJA METÁLICA, incluye recuperación y retiro de la misma fuera de la obra a cualquier distancia y ubicación indicada por la Supervisión.","m2",153.34,null,null,0,"%"]
[3,"E04-DEMCARP02","DEMOLICIÓN en FRÍO con MAQUINARIA PESADA de CARPETA de CONCRETO ASFÁLTICO sin recuperación. (Medido compacto)","m3",165.07,null,null,0,"%"]
[4,"E04-066","DEMOLICIÓN a cualquier altura y nivel de CONCRETO SIMPLE por MEDIOS MECÁNICOS, incluye acarreo de material producto de la demolición a cualquier distancia. (medido compacto)","m3",9.4,null,null,0,"%"]
[5,"E04-0212","DEMOLICIÓN a cualquier altura y nivel de CONCRETO ARMADO por MEDIOS MECÁNICOS sin recuperación de acero, incluye acarreo de material producto de la demolición a cualquier distancia. (medido compacto)","m3",39.049999999999997,null,null,0,"%"]
[6,"E04-0132","DEMOLICIÓN de PISO CERÁMICO y SOBREFIRME de concreto de 4 a 5 cm de espesor promedio a cualquier nivel, incluye acarreo del material producto de la demolición a cualquier distancia.","m2",6.22,null,null,0,"%"]
[7,"E04-114C","LIBERACIÓN de ADOQUÍN o ADOCRETO de concreto incluye recuperación del material y retiro del mismo a cualquier distancia a ubicación indicada por la supervisión.","m2",27.59,null,null,0,"%"]
[8,"E04-1091","LIBERACIÓN de PASTO sin recuperación, incluye acarreo y retiro a cualquier distancia indicada por la supervisión.","m2",395.38,null,null,0,"%"]
[9,"E04-0108","CORTE de PISO de concreto armado de 10 a 15 cm de espesor promedio por MEDIOS MECÁNICOS, incluye trazo y consumibles para la ejecución del trabajo.","m",182.36,null,null,0,"%"]
[10,"E04-1141","DESMONTAJE de VENTANERÍA, PUERTAS, MAMPARAS Y CANCELERÍA de HERRERÍA de perfil tubular con recuperación a cualquier nivel y altura, incluye recuperación de cristal y retiro de las ventanas a ubicación indicada por la supervisión a cualquier distancia.","m2",11.3,null,null,0,"%"]
[11,"E04-103","DESMONTAJE de ACCESORIOS ELÉCTRICOS visibles (cajas, apagadores, contactos) a cualquier nivel y altura sin recuperación, incluye retiro del material producto del desmontaje a ubicación indicada por la supervisión a cualquier distancia.","pza",4,null,null,0,"%"]
[12,"E04-1021","DESMONTAJE de LUMINARIA FLUORESCENTE con gabinete  de 0.60 x 1.20 m a cualquier nivel y altura, Incluye  retiro del material producto del desmontaje a ubicación indicada por la supervisión a cualquier distancia.","pza",1,null,null,0,"%"]
[13,"E04-104","DESMONTAJE de TABLERO de DISTRIBUCIÓN a cualquier nivel y altura, incluye retiro del material producto del desmontaje a ubicación indicada por la supervisión a cualquier distancia.","pza",2,null,null,0,"%"]
[14,"E04-114D","DESMONTAJE de TUBERÍA CONDUIT y CAJAS de FIERRO GALVANIZADO de 1/2\" a 1\", incluye recuperación del material y retiro del mismo a cualquier distancia a ubicación indicada por la supervisión.","m",15,null,null,0,"%"]
[15,"E04-105","DESMONTAJE con RECUPERACIÓN de EQUIPO de CONTROL de ACCESO (torniquetes electrónicos), incluye desconexión eléctrica, retiro del material producto del desmontaje a ubicación indicada por la supervisión a cualquier distancia.","pza",7,null,null,0,"%"]
[16,"E05-0122","ACARREO de ESCOMBRO y/o material producto de EXCAVACIÓN fuera de la obra en camión de  7 M3 de  capacidad, incluye carga A MANO y descarga en banco de desperdicio a cualquier distancia. (Medir compacto)","m3",288.64,null,null,0,"%"]
[null,null,null,null,"SUBTOTAL DE DEMOLICIONES Y DESMONTAJES:",null,null,{"$f":"SUM(H51:H66)","v":0}]
[]
[]
[]
["Nombre de la empresa",null,null,null,null,"Representante legal"]
[]
["PAR0002",null," PRELIMINARES"]
[17,"E05-004","TRAZO y NIVELACIÓN de OBRAS EXTERIORES, considerando: plazas, andadores, arriates y jardinería incluye equipo de topografía y materiales para señalamiento.","m2",3162.56,null,null,{"$f":"ROUND(E74*G74,2)","v":0},"%"]
[null,null,null,"SUBTOTAL DE  PRELIMINARES:",null,null,null,{"$f":"SUM(H74:H74)","v":0}]
[]
["PAR0003",null,"CIMENTACIÓN"]
[18,"E06-005","EXCAVACIÓN a cielo abierto en  terreno tipo \"B\" zona \"A\" empleando MEDIOS MECÁNICOS, hasta profundidades de 2.50 m, incluye afine de taludes. (Medido compacto)","m3",1318.36,null,null,{"$f":"ROUND(E78*G78,2)","v":0},"%"]
[19,"E05-0260","COMPACTACIÓN de TERRENO NATURAL al 90% de su PVSM, utilizando compactador de placa vibratoria (bailarina).","m2",2561.98,null,null,0,"%"]
[20,"E05-041","PLANTILLA de concreto simple f'c= 100 kg/cm2 de 6 cm de espesor, incluye cimbra común en fronteras y fabricación, vaciado, acarreo y picado de concreto.","m2",204.33,null,null,{"$f":"ROUND(E80*G80,2)","v":0},"%"]
[21,"E01-003","CIMBRA y descimbra en ZAPATAS y LOSAS de CIMENTACIÓN, acabado común con duela de madera de pino de 2a. y obra  falsa de madera de pino de 3a., medida por superficie de contacto, incluye materiales, mano de obra, habilitado, nivelado, desmoldante (no aceite quemado), desperdicios y cambio a la siguiente posición.","m2",78.239999999999995,null,null,0,"%"]
[22,"E01-021","CIMBRA y descimbra en DADOS y CONTRATRABES de CIMENTACIÓN acabado común con duela de madera de pino de 2a. y obra falsa de madera de pino de 3a., medida por superficie de contacto, incluye materiales, mano de obra, habilitado, nivelado, desmoldante (no aceite quemado), desperdicios y cambio a la siguiente posición.","m2",117.83,null,null,0,"%"]
[23,"E02-001","Suministro y colocación de ACERO de REFUERZO del No. 2 (1/4\") de diámetro fy= 2,530 kg/cm2 en CIMENTACIÓN, incluye  habilitado, armado, ganchos, dobleces,  traslapes,  silletas, desperdicio, alambre recocido, fletes y acarreo.","kg",139.88,null,null,0,"%"]
[24,"E02-003","Suministro y colocación de  ACERO de REFUERZO del No. 3 (3/8\") de diámetro fy= 4,200 kg/cm2 en CIMENTACIÓN, incluye habilitado, armado, ganchos, dobleces, traslapes, silletas, desperdicio, alambre recocido, fletes y acarreo.","kg",1448.03,null,null,0,"%"]
[25,"E02-004","Suministro y colocación de  ACERO de REFUERZO del No. 4 (1/2\") de diámetro fy= 4,200 kg/cm2 en CIMENTACIÓN, incluye habilitado, armado, ganchos, dobleces, traslapes, silletas, desperdicio, alambre recocido, fletes y acarreo.","kg",98.16,null,null,0,"%"]
[26,"E02-006","Suministro y colocación de  ACERO de REFUERZO del No. 6 (3/4\") de diámetro fy= 4,200 kg/cm2 en CIMENTACIÓN, incluye  habilitado, armado, ganchos, dobleces,  traslapes,  silletas, desperdicio, alambre recocido, fletes y acarreo.","kg",75.239999999999995,null,null,0,"%"]
[27,"E03-041","CONCRETO HECHO EN OBRA f'c= 250 kg/cm2 RESISTENCIA NORMAL, tamaño máximo del agregado 19 mm (3/4\"), revenimiento de 12 a 14 cm en CIMENTACIÓN a cualquier altura, incluye materiales, mano de obra, elaboración, acarreo, vaciado y vibrado de concreto, membrana de curado emulsionada, emulsión acuosa de copolimeros como adhesivo en juntas frías entre concreto viejo y nuevo, equipo, herramienta necesaria y desperdicio.","m3",35.17,null,null,0,"%"]
[28,"E11-3011","ENRASE con tabicón de concreto 8x12x26 cm de 12 cm de  espesor, asentado con mortero cemento-arena 1:4.","m2",133.99,null,null,0,"%"]
[29,"E10-085","CADENA o CASTILLO de concreto f'c= 200 kg/cm2 de 15 x 15 cm armado con 4 varillas del No. 3 (3/8\") y estribos del No. 2  (1/4\") a cada 15 cm, incluye cimbra común,  ganchos, traslapes, anclajes y cruces de varilla y fabricación, acarreo, vaciado y picado de concreto.","m",41.25,null,null,0,"%"]
[30,"E10-083","CADENA o CASTILLO de concreto f'c= 200 kg/cm2 de 15 x 20 cm armado con 4 varillas del No. 3 (3/8\") y estribos No. 2 (1/4\")  a cada 20 cm, incluye cimbra común, ganchos, traslapes, anclajes y cruces de varilla y fabricación, vaciado y picado de concreto.","m",85.02,null,null,0,"%"]
[31,"E10-0833","CADENA o CASTILLO de concreto f'c= 200 kg/cm2 de 15 x 30 cm armado con 4 varillas del No. 3 (3/8\") y estribos del No. 2 (1/4\")  a cada 15 cm, incluye cimbra común, ganchos, traslapes, anclajes y cruces de varilla y fabricación, vaciado, acarreo y picado de concreto.","m",23.98,null,null,0,"%"]
["Nombre de la empresa",null,null,null,null,"Representante legal"]
[]
[32,"E10-0655A","CADENA o CASTILLO de concreto f´c=200 kg/cm2 de 20 x 40 cm armado con 6 varillas del No. 3 (3/8\") y estribos del No. 2 (1/4\") a cada 20 cm, incluye cimbra común, ganchos, traslapes, anclajes y cruces de varilla y fabricación, vaciado, acarreo, vibrado y picado de concreto.","m",139.47,null,null,0,"%"]
[33,"E05-0212","RELLENO y ACOMODO con pisón mecánico (bailarina) en capas de 20 cm utilizando  material de banco (FILTRO), incluye agua,  traspaleo, extendido y acarreo a una distancia de 20.00 m. (Medir compacto)","m3",1033.26,null,null,0,"%"]
[34,"E05-0225","Suministro y RELLENO de material inerte para BASE HIDRÁULICA compactado al 95% de su PVSM con equipo mecánico en capas de 20 cm de espesor, incluye acarreo a cualquier distancia, agua, papeos y extendido. Mezcla al 100% a base de material pétreo clasificado de 1 1/2\" a finos y tepetate en proporción 80:20. (Medir compacto)","m3",486.18,null,null,0,"%"]
[35,"E05-0206","RELLENO y COMPACTADO por MEDIOS MECÁNICOS (MAQUINARIA PESADA) utilizando material producto de la excavación en capas de 20 cm, incluye agua necesaria, extendido y acarreo a cualquier distancia.(Medido compacto)","m3",103.98,null,null,0,"%"]
[36,"E05-0121","ACARREO de material producto de EXCAVACIÓN o ESCOMBRO fuera de la obra en camión de 7 m3 de  capacidad, incluye carga con MÁQUINA y descarga en banco de desperdicio a cualquier distancia. (Medido compacto)","m3",1302.4100000000001,null,null,0,"%"]
[37,"E15-1093","Suministro y aplicación de IMPERMEABILIZANTE asfáltico EMULSIONADO en CIMENTACIÓN a base de 1 capa a razón de 1.0 lt/m2,  incluye aplicación de imprimador para emulsiones asfálticas a razón de 20 m2/lt en dilución.","m2",36.11,null,null,0,"%"]
[null,null,"SUBTOTAL DE CIMENTACIÓN:",null,null,null,null,{"$f":"SUM(H78:H99)","v":0}]
[]
["PAR0004",null," ALBAÑILERÍA"]
[38,"E12-055","PISO de CONCRETO armado  f'c= 150 kg/cm2  de 10 cm  de espesor, armado con malla electrosoldada 66-1010, acabado PULIDO rayado y/o escobillado con cemento gris y juntas frías a hueso acabadas con volteador, incluye cimbra común en fronteras, nivelación, compactación y fabricación, acarreo, vaciado y extendido de concreto.","m2",1205.03,null,null,{"$f":"ROUND(E103*G103,2)","v":0},"%"]
[39,"E12-055C","PISO de CONCRETO hidráulico premezclado SIMPLE f'c=250 kg/cm2 (Norma NMX-C-155-ONNCCE-2014) de 17.5 cm de espesor, tamaño máximo del agregado 3/4\" extendida con regla vibratoria, incluye cimbrado en fronteras, colocado, vibrado, membrana de curado y acabado con cepillo de textura de alambre plano de 3/4\" de separación, corte con disco tanto longitudinal como transversalmente en todas sus juntas en un promedio de 3.50 x 3.50 m, todas las juntas deberán ser selladas con sellador de poliuretano autonivelante, cintilla de respaldo, limpieza de juntas con cepillo de alambre, sopleteado con aire a presión, primer y sellador, pasajuntas de redondo liso de 46 cm de largo y 3/4\" de diámetro a cada 30 cm, materiales y mano de obra.","m2",401.42,null,null,0,"%"]
[40,"E10-0825","CONSTRUCCIÓN de NARIZ de concreto f'c= 150 kg/cm2, incluye solo cimbra aparente, chaflanes y acero 0.8 kg/ml para remate.","m",59.4,null,null,0,"%"]
[41,"E12-0553","Construcción de GUARNICIÓN de concreto simple f'c=200 kg/cm2 , sección TRAPEZOIDAL 20 x 30 x 40 cm, incluye cimbrado aparente, juntas constructivas a cada 3.00 ml, elaboración, acarreo, vibrado y curado del concreto, acabado pulido con cemento gris, juntas y aristas con volteador,  herramienta, equipo y mano de obra.","m",433.17,null,null,0,"%"]
[42,"E13-093","PULIDO de SUPERFICIES de concreto aparente en COLUMNAS, MUROS y/o TRABES a cualquier altura y nivel con pasta cemento gris-compuesto liquido blanco de resinas estireno-acrílicas en dispersión para concreto nuevo-viejo en proporción 1:1 con agua, incluye rebabeo y retiro de membrana de curado, resanado, lijado de la superficie y aplicación en sustrato de compuesto liquido blanco de resinas estireno-acrílicas en dispersión para concreto nuevo-viejo en proporción 1:2 con agua.","m2",60.43,null,null,0,"%"]
["Nombre de la empresa",null,null,null,null,"Representante legal"]
[]
[43,"E15-BOLARCO01","CONSTRUCCIÓN de BOLARDO decorativo de 0.45 m de diámetro por 0.45 m de altura elaborado a base de CONCRETO f'c=250 kg/cm2 armado con 8 varilla del No. 3 (3/8\") y 5 estribos con varilla del 3 (3/8\") desde cimentación, incluye ganchos y traslapes del acero de refuerzo, alambre recocido, excavación a mano de forma circular en terreno tipo \"B\" para empotramiento de cimentación , plantilla de concreto f'c=100 kg/cm2 de 6 cm de espesor, cimbra común en cimentación, MOLDE METÁLICO prefabricado de FORMA CILÍNDRICA de 0.45 m de diámetro por 0.45 m de altura para construcción de BOLARDO elaborado a base de lámina metálica negra calibre 14, desmoldante, vibrado, elaboración, acarreo y colado de concreto, membrana de curado, chaflán de 0.02 m de catetos en perímetro de corona superior del bolardo y martelinado en SECO como acabado final sobre toda la superficie.","pza",55,null,null,0,"%"]
[null,null,null,"SUBTOTAL DE  ALBAÑILERÍA:",null,null,null,{"$f":"SUM(H103:H110)","v":0}]
[]
["PAR0005",null,"ESTRUCTURA"]
[44,"E01-053","CIMBRA de madera de triplay de pino de 16 mm y obra  falsa de madera de pino de 3a., ACABADO APARENTE en MUROS Y COLUMNAS medida por superficie de contacto a cualquier altura y nivel, incluye materiales, mano de obra, habilitado, desperdicio, nivelado, plomeo, descimbrado, compuesto liquido a base de derivados parafinicos para evitar adherencia entre el concreto y su cimbra, chaflanes, frentes y cambio a la siguiente posición. (Máximo 4 usos)","m2",59.35,null,null,{"$f":"ROUND(E114*G114,2)","v":0},"%"]
[45,"E01-060","CIMBRA de madera de triplay de pino de 16 mm y obra  falsa de madera de pino de 3a.,  ACABADO APARENTE  en TRABES medida por superficie de contacto a cualquier altura y nivel, incluye materiales, mano de obra, habilitado, desperdicio, nivelado, plomeo, descimbra, compuesto liquido a base de derivados parafinicos para evitar adherencia entre el concreto y su cimbra, chaflanes y cambio a la siguiente posición. (Máximo 4 usos)","m2",9.3000000000000007,null,null,0,"%"]
[46,"E01-070","CIMBRA de madera de triplay de pino de 16 mm y obra  falsa de madera de pino de 3a.,  ACABADO APARENTE  en LOSAS medida por superficie de contacto a cualquier altura y nivel, incluye materiales, mano de obra, habilitado, desperdicio, nivelado, plomeo, compuesto liquido a base de derivados parafinicos para evitar adherencia entre el concreto y su cimbra, chaflanes y cambio a la siguiente posición. (Máximo 4 usos)","m2",25.03,null,null,0,"%"]
[47,"E02-020","Suministro y colocación de ACERO de REFUERZO del No. 2 (1/4\") de diámetro fy= 2,530 kg/cm2 en ESTRUCTURA, incluye habilitado, armado, ganchos, dobleces,  traslapes, silletas, desperdicio, alambre recocido, fletes y acarreo.","kg",17.95,null,null,0,"%"]
[48,"E02-022","Suministro y colocación de ACERO de REFUERZO del No. 3 (3/8\") de diámetro fy= 4,200 kg/cm2 en ESTRUCTURA, incluye habilitado, armado, ganchos, dobleces, traslapes, silletas, desperdicio, alambre recocido, fletes y acarreo.","kg",345.42,null,null,0,"%"]
[49,"E03-029","CONCRETO HECHO EN OBRA f'c= 200 kg/cm2 RESISTENCIA NORMAL, tamaño máximo del agregado 19 mm (3/4\"), revenimiento de 12 a 14 cm en ESTRUCTURA a cualquier nivel y altura, incluye materiales, mano de obra, elaboración, acarreo, vaciado y vibrado de concreto, membrana de curado emulsionada, emulsión acuosa de copolimeros como adhesivo en juntas frías entre concreto viejo y nuevo, equipo, herramienta necesaria y desperdicio.","m3",4.79,null,null,0,"%"]
[null,null,null,"SUBTOTAL DE ESTRUCTURA:",null,null,null,{"$f":"SUM(H114:H119)","v":0}]
[]
["PAR0006",null,"ESTRUCTURA METÁLICA"]
[50,"E20-530","Suministro, habilitado y montaje de ESTRUCTURA METÁLICA a cualquier nivel y altura elaborada a base de perfiles de acero estructural de NORMA ASTM, incluye planos de taller,  trazo, nivelación y plomeo de estructura, tuercas alta resistencia grado estructural, riostras, contraflambeos, roscas, cortes, ajustes, absolutamente todos los elementos necesarios para conexión,  placas de conexión, ángulos de apoyo, anclas, placas base, soldadura, descalibre, desperdicios, maniobras con grúa y una mano de primario anticorrosivo aplicado en taller.","kg",14490.38,null,null,{"$f":"ROUND(E123*G123,2)","v":0},"%"]
["Nombre de la empresa",null,null,null,null,"Representante legal"]
[]
[51,"E20-5302","Suministro y colocación de ESTABILIZADOR de VOLUMEN no metálico tipo GROUT, incluye preparación de la mezcla tipo medio, fabricación, acarreo y vaciado de la mezcla y curado con membrana.","m3",7.0000000000000007E-2,null,null,0,"%"]
[52,"E20-6323","Suministro y colocación a cualquier altura y nivel de VARILLA ROSCADA HAS SUPER de 1/2\" x 6 1/2\" con tuerca y arandela marca HILTI, incluye CÁPSULA HVU DE 1/2\" x 4-1/4\" marca HILTI, perforaciones necesarias con broca para concreto, sopleteo de perforaciones, materiales, desperdicio, herramienta, equipo y mano de obra.","pza",240,null,null,0,"%"]
[null,null,null,"SUBTOTAL DE ESTRUCTURA METÁLICA:",null,null,null,{"$f":"SUM(H123:H127)","v":0}]
[]
["PAR0007",null,"INSTALACIÓN HIDRÁULICA"]
[53,"E16-460A","Suministro y tendido de TUBO de COBRE tipo \"M\" de 13 mm (1/2\") a cualquier nivel y altura, incluye mano de obra, ranuras, fijación de tubo, pasos y pruebas.","m",5.0999999999999996,null,null,{"$f":"ROUND(E131*G131,2)","v":0},"%"]
[54,"E16-460C","Suministro y tendido de TUBO de COBRE tipo \"M\" de 25 mm (1\") a cualquier nivel y altura, incluye mano de obra, ranuras, fijación de tubo, pasos y pruebas.","m",2.21,null,null,0,"%"]
[55,"E16-4612","Suministro y colocación a cualquier nivel y altura de TEE COBRE a cobre a cobre interiores de 1/2\" (13 mm) figura 711-T, incluye mano de obra, ranuras, fijación de la pieza donde se requiera, soldadura, pasta fundente, lija y pruebas.","pza",2,null,null,0,"%"]
[56,"E16-4646","Suministro y colocación a cualquier nivel y altura de TEE COBRE a cobre a cobre interiores de 1\" (25 mm) figura 711-T, incluye mano de obra, ranuras, fijación de la pieza donde se requiera, soldadura, pasta fundente, lija y pruebas.","pza",1,null,null,0,"%"]
[57,"E16-461","Suministro y colocación a cualquier nivel y altura de CODO de COBRE de 90°x1/2\" (13 mm) cobre interior a cobre interior figura 707-90°, incluye mano de obra, ranuras, fijación de la pieza donde se requiera, soldadura, pasta fundente, lija y pruebas.","pza",3,null,null,0,"%"]
[58,"E16-4681","Suministro y colocación a cualquier nivel y altura de REDUCCIÓN BUSHING de COBRE de 1\" (25 mm) a 1/2\" (13 mm) cobre exterior a cobre  interior figura 7012, incluye mano de obra, ranuras, fijación de la pieza donde se requiera, soldadura, pasta fundente, lija y pruebas.","pza",2,null,null,0,"%"]
[59,"E16-467","Suministro y colocación a cualquier nivel y altura de CONECTOR COBRE interior a hierro interior de 1/2\" (13 mm) de diámetro figura 703, incluye mano de obra, ranuras, fijación de la pieza donde se requiera, soldadura, pasta fundente, lija y pruebas.","pza",2,null,null,0,"%"]
[null,null,null,null,null,"SUBTOTAL DE INSTALACIÓN HIDRÁULICA:",null,{"$f":"SUM(H131:H137)","v":0}]
[]
["PAR0008",null,"INSTALACIÓN SANITARIA"]
[60,"E17-0051","Suministro y tendido a cualquier altura y nivel de TUBO de P.V.C. SANITARIO de 2\" (51 mm) de NORMA NMX-E-199/1, incluye mano de obra, ranuras, fijación, pasos y pruebas.","m",2.46,null,null,{"$f":"ROUND(E141*G141,2)","v":0},"%"]
[61,"E17-0057","Suministro y tendido a cualquier altura y nivel de TUBO de P.V.C. SANITARIO de 4\" (100 mm) de NORMA NMX-E-199/1, incluye mano de obra, ranuras, fijación, pasos y pruebas.","m",1.7,null,null,0,"%"]
[62,"E17-0053","Suministro y colocación a cualquier altura y nivel de CODO de P.V.C. SANITARIO de 90° x 50 mm (2\") de diámetro CEMENTAR , incluye mano de obra, ranuras, fijación de la pieza donde se requiera y pruebas.","pza",2,null,null,0,"%"]
[63,"E17-0054","Suministro y colocación a cualquier altura y nivel de  CODO de P.V.C. SANITARIO de 90° x 100 mm (4\") de diámetro CEMENTAR, incluye mano de obra, ranuras, fijación de la pieza donde se requiera y pruebas.","pza",1,null,null,0,"%"]
[64,"E17-011A","Suministro y colocación a cualquier altura y nivel de TEE SENCILLA de P.V.C. SANITARIO de 2\"x2\" (50x50 mm) CEMENTAR, incluye mano de obra, ranuras, fijación de la pieza donde se requiera y pruebas.","pza",1,null,null,0,"%"]
[65,"E17-011B","Suministro y colocación a cualquier altura y nivel de TEE SENCILLA de P.V.C. SANITARIO de 4\" x 4\" (100 x 100mm) CEMENTAR, incluye mano de obra, ranuras, fijación de la pieza donde se requiera y pruebas.","pza",1,null,null,0,"%"]
["Nombre de la empresa",null,null,null,null,"Representante legal"]
[]
[66,"E08-001","REGISTRO SANITARIO de 40 x 60 x 100 cm (interior) elaborado a base de tabicón de concreto de 12 cm de espesor,  junteado  con mortero cemento-arena 1:5 acabado pulido con cemento gris, plantilla de concreto simple f'c= 100 kg/cm2, incluye tapa metálica colada con concreto f'c= 150 kg/cm2.","pza",1,null,null,0,"%"]
[null,null,"SUBTOTAL DE INSTALACIÓN SANITARIA:",null,null,null,null,{"$f":"SUM(H141:H149)","v":0}]
[]
["PAR0009",null,"INSTALACIÓN ELÉCTRICA E ILUMINACIÓN"]
[67,"E18-POLI25","Suministro y tendido a cualquier nivel y altura de POLIDUCTO REFORZADO NARANJA de 1\", incluye guía de alambre galvanizado calibre 14.","m",164.27,null,null,{"$f":"ROUND(E153*G153,2)","v":0},"%"]
[68,"E18-0322","Suministro y tendido a cualquier nivel y altura de CABLE DE COBRE SUAVE THW-LS calibre 8 temperatura máxima de operación 90°C y tensión máxima de 600 volts, incluye cocas y desperdicios.","m",341.75,null,null,{"$f":"ROUND(E154*G154,2)","v":0},"%"]
[69,"E18-2242","Suministro y tendido a cualquier nivel y altura de CABLE de COBRE DESNUDO calibre 10, incluye cocas y desperdicios.","m",170.87,null,null,0,"%"]
[70,"E18-513","Suministro y colocación de CENTRO de CARGA  marca SQUARE-D, Qo-D4F, 4 polos, 60 ampers, de 240-120 VCA.","pza",1,null,null,0,"%"]
[71,"E18-559B","Suministro e instalación a cualquier nivel y altura de INTERRUPTOR TERMOMAGNÉTICO tipo Qo de 1 polo por 30 ampers marca SQUARE-D.","pza",4,null,null,0,"%"]
[72,"E18-LUMI02","Suministro y colocación de LUMINARIA POSTE DE MEDIA ALTURA ORNAMENTAL LED de 2.70 m de altura, 0.28 m de diámetro, modelo BOLLARD OU9045FBNA de 50 watts, marca CONSTRULITA, 120-277 Volts-60 Hz, elaborada en aluminio extruido, reflector de aluminio pintado y difusor de termoplástico, incluye lámpara 50 watts, driver electrónico, conexión y todo lo necesario para su fijación.","pza",20,null,null,0,"%"]
[73,"E10-2006","Suministro y colocación de REGISTRO ELÉCTRICO de concreto prefabricado de 0.35 x 0.35 m y 0.50 m de profundidad (ALUMBRADO), incluye nivelación y plomeo y cama de grava volcánica para drenaje de aguas.","pza",5,null,null,0,"%"]
[74,"E10-BASE01","Suministro y colocación de BASE PIRAMIDAL PREFABRICADA de concreto armado f'c=200 kg/cm2 de 40x80x80 cm para luminaria de poste, incluye anclas roscadas de 3/4\", acarreos, nivelación y plomeo.","pza",5,null,null,0,"%"]
[75,"E18-3214","Suministro y colocación a cualquier nivel y altura de TUBO CONDUIT de P.V.C. tipo PESADO de 3\" (75 mm),de diámetro, incluye guía de alambre galvanizado calibre 14, pegamento, fijación de tubería y ranuras donde se requiera, desperdicios y todo lo necesario para su correcto funcionamiento.","m",32.06,null,null,0,"%"]
[76,"E18-3258","Suministro y colocación a cualquier nivel y altura de CODO CONDUIT P.V.C. PESADO de 3\" (75 mm) de diámetro, incluye fijación de la pieza, ranuras donde se requiera y desperdicios.","pza",6,null,null,0,"%"]
[77,"E18-321D","Suministro y colocación a cualquier nivel y altura de CONECTOR CONDUIT P.V.C. PESADO de 3\" (75 mm) de diámetro, incluye fijación de la pieza, ranuras donde se requiera y desperdicios.","pza",5,null,null,0,"%"]
[78,"E18-221","Suministro y tendido a cualquier nivel y altura de TUBO CONDUIT GALVANIZADO PARED DELGADA de 13 mm (1/2\"), incluye guía de alambre galvanizado calibre 14, roscas, dobleces, fijación de tubería y ranuras donde se requiera, desperdicios, pasos y todo lo necesario para su correcto funcionamiento.","m",18.670000000000002,null,null,0,"%"]
[79,"E18-2222","Suministro y colocación a cualquier nivel y altura de CODO CONDUIT GALVANIZADO PARED DELGADA de 1/2\" (13 mm) de diámetro, incluye fijación de la pieza y ranuras donde se requiera, desperdicios y todo lo necesario para su correcto funcionamiento.","pza",9,null,null,0,"%"]
[80,"E18-COVAL01","Suministro y colocación a cualquier nivel y altura de CONDULET OVALADO serie 7 de 3/4\" (19 mm) tipo \"C\", \"LB\", \"LL\", \"LR\", \"TB\" o \"X\" marca CROUSE-HINDS , incluye tapa, empaque, fijación de la pieza, ranuras donde se requiera, desperdicios y todo lo necesario para su fijación.","pza",3,null,null,0,"%"]
[81,"E18-222","Suministro y colocación a cualquier nivel y altura de CONECTOR CONDUIT GALVANIZADO PARED DELGADA de 1/2\" (13 mm) de diámetro, incluye fijación de la pieza y ranuras donde se requiera, desperdicios y todo lo necesario para su correcto funcionamiento.","pza",11,null,null,0,"%"]
["Nombre de la empresa",null,null,null,null,"Representante legal"]
[]
[82,"E18-2229","Suministro y colocación a cualquier nivel y altura de CHALUPA GALVANIZADA de 1/2\" (13 mm), incluye fijación de la pieza y ranuras donde se requiera, desperdicios y todo lo necesario para su correcto funcionamiento.","pza",5,null,null,0,"%"]
[83,"E18-2231","Suministro y tendido a cualquier nivel y altura de CABLE DE COBRE SUAVE THW-LS calibre 10 temperatura máxima de operación 90°C y tensión máxima de 600 volts, incluye cocas y desperdicios.","m",19.989999999999998,null,null,0,"%"]
[84,"E18-0315","Suministro y tendido a cualquier nivel y altura de CABLE DE COBRE SUAVE THW-LS calibre 12 temperatura máxima de operación 90°C y tensión máxima de 600 volts, incluye cocas y desperdicios.","m",17.350000000000001,null,null,0,"%"]
[85,"E18-2241","Suministro y tendido a cualquier nivel y altura de CABLE de COBRE DESNUDO calibre 12, incluye cocas y desperdicios.","m",18.670000000000002,null,null,0,"%"]
[86,"E18-0293","Suministro y colocación a cualquier nivel o altura de PLACA piloto o de 1,2 o 3 módulos línea QUINZIÑO MX marca Bticino serie BRILLANTES color según muestra aprobada , incluye todo lo necesario para su fijación.","pza",5,null,null,0,"%"]
[87,"E18-0295","Suministro y colocación a cualquier nivel o altura de CONTACTO o toma de corriente polarizada y aterrizada 2P+T marca Bticino código QZ5115DS línea QUINZIÑO MX, incluye pruebas y todo lo necesario para su fijación.","pza",4,null,null,0,"%"]
[88,"E18-0294","Suministro y colocación a cualquier nivel y altura de INTERRUPTOR SENCILLO 1 modulo marca Bticino línea QUINZIÑO MX código QZ5001, incluye pruebas y todo lo necesario para su fijación.","pza",1,null,null,0,"%"]
[89,"E18-514","Suministro y colocación de CENTRO de CARGA marca SQUARE-D, Qo-D8F, 8 polos, 100 ampers, de 240-120 VCA.","pza",1,null,null,0,"%"]
[90,"E18-559","Suministro e instalación a cualquier nivel y altura de INTERRUPTOR TERMOMAGNÉTICO tipo Qo de 1 polo por 15 ampers marca SQUARE-D.","pza",4,null,null,0,"%"]
[91,"E18-559B","Suministro e instalación a cualquier nivel y altura de INTERRUPTOR TERMOMAGNÉTICO tipo Qo de 1 polo por 30 ampers marca SQUARE-D.","pza",2,null,null,0,"%"]
[92,"E18-674","Suministro y colocación a cualquier altura y nivel  de LUMINARIA DE EMPOTRAR 2 x 13 watts serie DOWNLIGHT FLUORESCENTE modelo FIT II CENTER marca MAGG calve L1935-1F0, incluye  balastro electrónico, lámparas, elaboración de hueco en falso plafond y todo lo necesario para su fijación.","pza",6,null,null,0,"%"]
[93,"E18-600C","Suministro y colocación a cualquier altura y nivel  de LUMINARIA de SUSPENDER o SOBREPONER 2 x 28 watts modelo ARTIC marca CONSTRULITA clave OF4027B41A, incluye  balastro electrónico multivoltaje 127-227 v, lámparas T-5, 4000 K y todo lo necesario para su fijación.","pza",1,null,null,0,"%"]
[94,"E18-REFLED01","Suministro y colocación a cualquier altura y nivel  de REFLECTOR LED 50 watts modelo REFLED-50W/65 marca IPSA, incluye  balastro driver, lámpara, 65000 K y todo lo necesario para su fijación.","pza",32,null,null,0,"%"]
[95,"E18-PROYINT01","Suministro y colocación a cualquier altura y nivel  de LUMINARIA PROYECTOR INTERIOR de EMPOTRAR dirigible LED de 12 watts SERIE C12-E modelo L5670-1E5 marca MAGG, 100--305 volts 3000 K, incluye driver, lámpara y todo lo necesario para su fijación.","pza",26,null,null,0,"%"]
[null,null,null,"SUBTOTAL DE INSTALACIÓN ELÉCTRICA E ILUMINACIÓN:",null,null,null,{"$f":"SUM(H153:H183)","v":0}]
[]
["PAR0010",null,"INSTALACIÓN DE VOZ Y DATOS"]
[96,"E18-3213","Suministro y colocación a cualquier nivel y altura de TUBO CONDUIT de P.V.C. tipo PESADO de 2\" (51 mm),de diámetro, incluye guía de alambre galvanizado calibre 14, pegamento, fijación de tubería y ranuras donde se requiera, desperdicios y todo lo necesario para su correcto funcionamiento.","m",8.65,null,null,{"$f":"ROUND(E187*G187,2)","v":0},"%"]
[97,"E18-3212","Suministro y colocación a cualquier nivel y altura de TUBO CONDUIT de P.V.C. tipo PESADO de 1 1/2\" (38 mm),de diámetro, incluye guía de alambre galvanizado calibre 14, pegamento, fijación de tubería y ranuras donde se requiera, desperdicios y todo lo necesario para su correcto funcionamiento.","m",10.26,null,null,{"$f":"ROUND(E188*G188,2)","v":0},"%"]
["Nombre de la empresa",null,null,null,null,"Representante legal"]
[]
[98,"E18-3210","Suministro y colocación a cualquier nivel y altura de TUBO CONDUIT de P.V.C. tipo PESADO de 3/4\" (19 mm),de diámetro, incluye guía de alambre galvanizado calibre 14, pegamento, fijación de tubería y ranuras donde se requiera, desperdicios y todo lo necesario para su correcto funcionamiento.","m",1.51,null,null,{"$f":"ROUND(E191*G191,2)","v":0},"%"]
[99,"E18-0296B","Suministro y colocación de REGISTRO TELEFÓNICO  de lámina galvanizada de 30x30x13 cm, Incluye todo lo necesario para su fijación.","pza",1,null,null,{"$f":"ROUND(E192*G192,2)","v":0},"%"]
[100,"E18-030","Suministro y colocación a cualquier nivel y altura de CAJA CUADRADA GALVANIZADA de 1 1/2\" (38 mm), incluye fijación de la pieza y ranuras donde se requiera, desperdicios y todo lo necesario para su correcto funcionamiento.","pza",8,null,null,{"$f":"ROUND(E193*G193,2)","v":0},"%"]
[101,"E18-2225","Suministro y colocación a cualquier nivel y altura de CONECTOR CONDUIT GALVANIZADA PARED DELGADA de 3/4\" (19 mm) de diámetro, incluye fijación de la pieza y ranuras donde se requiera, desperdicios y todo lo necesario para su correcto funcionamiento.","pza",4,null,null,{"$f":"ROUND(E194*G194,2)","v":0},"%"]
[102,"E18-0301","Suministro y colocación a cualquier nivel y altura de CONECTOR CONDUIT GALVANIZADA PARED DELGADA de 1 1/2\" (38 mm) de diámetro, incluye fijación de la pieza y ranuras donde se requiera, desperdicios y todo lo necesario para su correcto funcionamiento.","pza",17,null,null,{"$f":"ROUND(E195*G195,2)","v":0},"%"]
[null,null,null,"SUBTOTAL DE INSTALACIÓN DE VOZ Y DATOS:",null,null,null,{"$f":"SUM(H187:H195)","v":0}]
[]
["PAR0011",null,"ACABADOS Y RECUBRIMIENTOS"]
[103,"E22-043","Suministro y aplicación a cualquier altura y nivel de PINTURA de ESMALTE ALQUIDÁLICO ANTICORROSIVO a DOS MANOS SOBRE HERRERÍA, trabajo terminado con PISTOLA Y COMPRESOR a una cara,  incluye solvente adelgazador, limpieza, preparación de la superficie y el equipo necesario.","m2",631.66,null,null,{"$f":"ROUND(E199*G199,2)","v":0},"%"]
[104,"E22-0468","Suministro y aplicación con brocha o rodillo de PINTURA PARA SEÑALAMIENTO DE TRANSITO base solvente en color amarillo trabajo terminado a una mano, incluye limpieza de la superficie, aplicación y el equipo necesario.","m2",69.75,null,null,{"$f":"ROUND(E200*G200,2)","v":0},"%"]
[105,"E22-BARNIZ01","Suministro y aplicación de BARNIZ de POLIURETANO para EXTERIORES acabado terminado a 3 manos con pistola y compresor a una cara, incluye solvente adelgazador, preparación y lijado de la superficie, andamios y todo lo necesario para la protección y limpieza del área de trabajo.","m2",42.05,null,null,{"$f":"ROUND(E201*G201,2)","v":0},"%"]
[106,"E22-BARNIZ03","Suministro y aplicación a cualquier nivel y altura de BARNIZ de MEZCLA de ACEITE MODIFICADO con POLIURETANO a TRES MANOS trabajo terminado con PISTOLA y COMPRESOR sobre SUPERFICIES de MADERA expuestas a la INTEMPERIE, incluye preparación y lijado de la superficie, andamios y todo lo necesario para la protección y limpieza del área de trabajo.","m2",93.59,null,null,{"$f":"ROUND(E202*G202,2)","v":0},"%"]
[107,"E22-AISLAMAD01","Suministro y aplicación a cualquier nivel y altura de AISLANTE de POLIURETANO CATALIZADO a DOS MANOS con PISTOLA y COMPRESOR sobre SUPERFICIES de MADERA expuestas a la INTEMPERIE, incluye preparación y lijado, andamios y todo lo necesario para la protección y limpieza del área de trabajo.","m2",93.59,null,null,0,"%"]
[null,null,null,"SUBTOTAL DE ACABADOS Y RECUBRIMIENTOS:",null,null,null,{"$f":"SUM(H199:H203)","v":0}]
[]
["PAR0012",null," ALUMINIO, VIDRIOS, DOMOS Y POLICARBONATO"]
[108,"E21-1212A","Suministro y colocación a cualquier nivel y altura de PANEL DE ALUMINIO COMPUESTO de 4 mm de espesor marca ALUCOBOND acabado HIGH GLOSS WHITE, incluye preparación, cortes, ajustes a detalle, sellado en juntas adhesivo montante, limpieza del área de trabajo y retiro fuera de la obra de materiales sobrantes","m2",10.79,null,null,{"$f":"ROUND(E207*G207,2)","v":0},"%"]
[109,"E22-100","Suministro y colocación de CRISTAL FLOTADO CLARO de 6 mm de espesor, incluye, cortes, desperdicio, sellado con silicón y todo lo necesario para su fijación.","m2",18.61,null,null,0,"%"]
[null,null,null,"SUBTOTAL DE  ALUMINIO, VIDRIOS, DOMOS Y POLICARBONATO:",null,null,null,{"$f":"SUM(H207:H208)","v":0}]
[]
["Nombre de la empresa",null,null,null,null,"Representante legal"]
[]
["PAR0013",null," TABLEROS DE YESO Y TABLACEMENTO"]
[110,"E11-205A","Suministro y colocación de LAMBRÍN para CAJILLOS, DUCTOS, FALDONES Y RECUBRIMIENTOS de TABLACEMENTO 13-63 a cualquier nivel y altura con canal de amarre de lámina galvanizada calibre 22 de 63.5 mm, bastidor a base de postes metálicos galvanizados calibre 20 de 63.5 mm a cada 40.6 cm, 1 placa de tablacemento de 13 mm, cinta de refuerzo de 4\", Basecoat y  tornillería autorroscante de 26.4 mm, incluye desperdicios.","m2",11.48,null,null,{"$f":"ROUND(E214*G214,2)","v":0},"%"]
[null,null,null,"SUBTOTAL DE  TABLEROS DE YESO Y TABLACEMENTO:",null,null,null,{"$f":"SUM(H214:H214)","v":0}]
[]
[]
["PAR0014",null,"COLOCACIONES"]
[111,"E14-408C","Suministro y colocación a cualquier nivel de EQUIPO PRESURIZADOR marca ROWA modelo PRESS 200, incluye facilitadores de conexión y todo lo necesario para su fijación.","pza",1,null,null,{"$f":"ROUND(E219*G219,2)","v":0},"%"]
[112,"E14-400","Suministro y colocación de COLADERA para piso una boca con rejilla modelo 24 marca HELVEX.","pza",1,null,null,0,"%"]
[113,"E14-0021A","Suministro y colocación a cualquier nivel de INODORO ELONGADO y TANQUE marca AMERICAN STANDARD modelo CADET PRO RH EL de color blanco, incluye brida flexible, alimentador para inodoro de 1/2\", llave angular sin contratuerca, asiento de polipropileno virgen con agente antibacterial garantía de un año para inodoro elongado en color blanco, sellado con silicón antibacterial color blanco y todo lo necesario para su fijación.","pza",1,null,null,0,"%"]
[114,"E14-0022","Suministro y colocación a cualquier nivel de LAVABO modelo HABITAT marca AMERICAN STANDARD en color BLANCO,  incluye cespol de P.V.C. para lavabo, empaque de bastón de 2\" x 1 1/2\",  llave mezcladora de 4\", llave angular sin contratuerca, alimentador para  lavabo o fregador de 1/2\" x  40 cm de largo, sellado con silicón antibacterial  y  todo lo necesario para su fijación.","pza",1,null,null,0,"%"]
[115,"E20-CICL01","Suministro y colocación de CICLOPUERTO de 210 x 115 x 210 cm para 12 bicicletas, elaborado a base de acero al carbón y lámina, acabado galvanizado con pintura de poliéster, nivelación, plomeo y kit de instalación.","pza",2,null,null,0,"%"]
[116,"E20-BASU01","Suministro y colocación de BASURERO PREFABRICADO de 60 x 60 x 90 cm  modelo BKT-BA-007/L marca BKT elaborado a base de acero al carbón galvanizado en frío acabado con pintura de poliéster, incluye nivelación, plomeo y kit de instalación.","pza",5,null,null,0,"%"]
[117,"E20-MAP01","Suministro y colocación de MAMPARA PARA SEÑALIZACIÓN PREFABRICADA de 90 x 40 x cm  modelo BKT-SE-001 marca BKT elaborada a base de acero al carbón galvanizado en frío acabado con pintura de poliéster, incluye nivelación, plomeo y kit de instalación.","pza",2,null,null,0,"%"]
[null,null,null,"SUBTOTAL DE COLOCACIONES:",null,null,null,{"$f":"SUM(H219:H225)","v":0}]
[]
["PAR0015",null,"SEÑALÉTICA"]
[118,"E85-LETRAS01","Suministro y colocación a cualquier nivel y altura de LETRA, NÚMERO O SÍMBOLO de POLIESTIRENO EXPANDIDO de 3/4\" de espesor para marcado de las mismas en bajo relieve sobre concreto, incluye nivelación, ajustes, liberación de poliestireno una vez fraguado el concreto, rebabeo, detallado, perfilado de aristas y todo lo necesario para su fijación a la cimbra.","m2",12.89,null,null,{"$f":"ROUND(E229*G229,2)","v":0},"%"]
[null,null,null,"SUBTOTAL DE SEÑALÉTICA:",null,null,null,{"$f":"SUM(H229:H229)","v":0}]
[]
[]
[]
[]
[]
["Nombre de la empresa",null,null,null,null,"Representante legal"]
[]
["PAR0016",null,"HERRERÍA"]
[119,"E20-530A","Suministro, habilitado y colocación ESTRUCTURA METÁLICA DECORATIVA a cualquier nivel y altura elaborada a base de perfiles de acero estructural y comercial de NORMA ASTM, incluye trazo, nivelación y plomeo de estructura, placas de conexión, ángulos de apoyo, anclas, placas base, soldadura, descalibre, tejuelos, bisagras, jaladeras, pasadores, desperdicios y una mano de primario anticorrosivo aplicado en taller.","kg",1165.67,null,null,{"$f":"ROUND(E239*G239,2)","v":0},"%"]
[120,"E20-530C","Suministro, habilitado y colocación ESTRUCTURA METÁLICA para PUERTAS y VENTANAS a cualquier nivel y altura elaborada a base de perfiles de acero comercial de NORMA ASTM y lámina, incluye trazo, nivelación y plomeo de estructura, placas de conexión, ángulos de apoyo, anclas, placas base, soldadura, descalibre, tejuelos, bisagras, jaladeras, pasadores, desperdicios y una mano de primario anticorrosivo aplicado en taller.","kg",465.3,null,null,0,"%"]
[121,"E21-LAPER100","Suministro y colocación a cualquier nivel y altura de LÁMINA NEGRA con PERFORACIÓN ESCALONADA CIRCULAR de 1\" (25 mm) calibre 14, incluye cortes, ajustes, desperdicios, soldadura, primer alquidálico anticorrosivo y todo lo necesario para su fijación.","m2",152.94,null,null,0,"%"]
[122,"E20-LPINTRO01","Suministro e instalación de lámina PINTRO BLANCA TRN-100/35 calibre 24, incluye trazo, cortes, dobleces, desperdicios, fijación con tornillo de 1/4\" x 1\"  punta de broca y arandela de neopreno a cada 40 cm  en sentido longitudinal y sellado con sellador de poliuretano.","m2",117.78,null,null,0,"%"]
[123,"E21-8314","Suministro y colocación de REJA METÁLICA de 3.00 m de altura  elaborada a base de TUBO de FIERRO NEGRO de 3\" de diámetro cédula 30  a cada 0.15 m de separación centro a centro, incluye equipo, anclaje de tubos a contratrabe de 40 cm de alto, solera base de 4\" x 1/4\", cortes, tapa superior de tubos con lamina negra calibre 16, habilitado, soldadura, trazo, nivelación, plomeo, colocación y liberación de guías, acarreos, limpieza y protección del área de trabajo, montajes y aplicación de primer anticorrosivo.","m",115.9,null,null,0,"%"]
[124,"E21-8224E","Suministro y colocación de PUERTA METÁLICA de 3.70 m de largo x 2.60 m de alto, a dos hojas, elaborada a base de TUBO de FIERRO NEGRO de 3\" de diámetro cédula 30 a cada 0.15 m de separación centro a centro y dos atiezadores longitudinales cortados con pantógrafo (uno en la parte superior y otro en la inferior con placa de 1/2\" de espesor x 11.50 cm de ancho), incluye tapa superior de tubos con lámina negra calibre 16, equipo, nivelación, plomeo, aplicación primer anticorrosivo, placas de sujeción, postes laterales con tubo de fierro negro de 6\" cédula 40, pasadores, limpieza y protección del área de trabajo y todo lo necesario para su fijación.","pza",1,null,null,0,"%"]
[125,"E21-8224F","Suministro y colocación de PUERTA METÁLICA de 5.64 m de largo x 2.60 m de alto, a dos hojas, elaborada a base de TUBO de FIERRO NEGRO de 3\" de diámetro cédula 30 a cada 0.15 m de separación centro a centro y dos atiezadores longitudinales cortados con pantógrafo (uno en la parte superior y otro en la inferior con placa de 1/2\" de espesor x 11.50 cm de ancho), incluye tapa superior de tubos con lámina negra calibre 16, equipo, nivelación, plomeo, aplicación primer anticorrosivo, placas de sujeción, postes laterales con tubo de fierro negro de 6\" cédula 40, pasadores, limpieza y protección del área de trabajo y todo lo necesario para su fijación.","pza",1,null,null,0,"%"]
[126,"E21-BOLAR01","Suministro y colocación a cualquier nivel de BOLARDO o GUARDACANTÓN de 0.75 m de altura libre a partir del NPT ( Nivel de Piso Terminado), incluye tapa superior de 76.20 x 59.20 mm con placa de 3/16\", solera de 3/16\" x 2\" x 0.35 m de largo para empotre a piso, placa base de desplante de 0.20 x 0.20 m con placa de 3/16\", soldadura, cortes, trazo para su ubicación y alineado, nivelación, plomeo, primer anticorrosivo, acabado con pintura de tránsito a dos manos aplicado con pistola y compresor, cinta reflectiva autoadherible 2\" grado de ingeniería, excavación en terreno tipo \"B\" de 0.30 x 0.30 m y 0.25 m de altura y elaboración, acarreo y colado de concreto f'c=250 kg/cm2 para su fijación a piso.","pza",83,null,null,0,"%"]
["Nombre de la empresa",null,null,null,null,"Representante legal"]
[]
[127,"E21-APS01","Suministro y colocación a cualquier altura y nivel de PERFIL ESTRUCTURAL APS de 3/16\"x3\", incluye perforaciones de 3/8\" a 1/2\" a cada 5 cm, cortes, desperdicio, soldadura y una mano de primario anticorrosivo.","m",25.92,null,null,0,"%"]
[128,"E21-BANCA02","Fabricación y colocación de BANCA DECORATIVA DE 0.31 m de ancho por 2.00 m de largo y 0.45 m de alto elaborada a base de perfil estructural tipo IPR W12 de 12\" x 4\" (20.83 kg/m), incluye dos placas de 0.31 x 0.10 m con placa de 3/8\" de espesor, 4 barrenos de 1/2\" de diámetro por placa, 8 barrenos de 1/2\" por 8 mm en piso de concreto, 8 taquetes tipo anclaje de expansión de 3/8\", cortes a 45°, soldadura, una mano de primer anticorrosivo aplicado en taller, losa de concreto f'c=200 kg/cm2 de 5 cm de espesor, malla electrosoldada 66-1010 para refuerzo de losa, alambre recocido, 4 refuerzos transversales de redondo de 3/8\" soldados al IPR, cimbra y descimbra aparente en fronteras transversales de la losa y martelinado en SECO con explosión del agregado como final sobre toda la superficie.","pza",15,null,null,0,"%"]
[129,"E21-DUELAPERF01","Suministro y colocación de FALSO PLAFÓN a cualquier nivel y altura, elaborado a base de TIRA de LÁMINA PINTRO PERFORADA para cortina estilo EUROPEO calibre 24 SIN TRASLAPES, incluye cortes, ajustes, desperdicios, soldadura y todo lo necesario para su fijación.","m2",111.48,null,null,0,"%"]
[130,"E22-002A","Suministro y colocación de REJA DEACERO de 2.50 m de altura libres con 5 pliegues, empotrada al piso 0.60 m color según muestra aprobada compuesta por varilla lisa calibre 6 (4.9 mm) con una resistencia a la tensión de 75,000 a 100,000 lb/plg2 cubierta con zinc 100 gr/m2 y acabado con poliéster termoendurecido de 100 micras de espesor, incluye postes del mismo sistema de 2 1/4\" x 2 1/4\" calibre 16, empotrado de postes, trazo, nivelación plomeo, abrazaderas, tapas, bayonetas y todo lo necesario para su fijación.","m",50,null,null,0,"%"]
[131,"E20-533A","Suministro, habilitado y colocación de BOTAGUAS perimetral en forma de ángulo de 0.12 m de desarrollo, elaborado a base de lámina lisa galvanizada calibre 24, Incluye cortes, desperdicio, dobleces de la lámina, calafateo y sellado con silicón grado arquitectónico, y todo lo necesario para su fijación.","m",7.32,null,null,0,"%"]
[null,null,null,"SUBTOTAL DE HERRERÍA:",null,null,null,{"$f":"SUM(H239:H253)","v":0}]
[]
["PAR0017",null,"CARPINTERÍA"]
[132,"E24-SMADPINO1","Suministro, tratamiento, cepillado y colocación de MADERA de PINO calidad 2da o mejor en GUALDRA, VIGA y TABLÓN, incluye secado estufado, puesta de material en obra,  acomodo en forma estibada y tratamiento por método de presión y vacío, a base de sales de boro y arsenato de cromado de cobre (sales CCA o CCB) en autoclave.","pt",1607.84,null,null,{"$f":"ROUND(E257*G257,2)","v":0},"%"]
[133,"E21-TORNICARP01","Suministro y colocación a cualquier nivel y altura de TORNILLO (PERNO GOLOSO) GALVANIZADO de 3/8\" x 6\" para estructuras de madera, incluye arandela plana metálica galvanizada de 3/8\".","pza",898,null,null,0,"%"]
[null,null,null,"SUBTOTAL DE CARPINTERÍA:",null,null,null,{"$f":"SUM(H257:H258)","v":0}]
[]
["PAR0018",null,"TERRACERÍAS"]
[134,"E05-0260","COMPACTACIÓN de TERRENO NATURAL al 90% de su PVSM, utilizando compactador de placa vibratoria (bailarina).","m2",306.98,null,null,{"$f":"ROUND(E262*G262,2)","v":0},"%"]
[135,"E05-0212","RELLENO y ACOMODO con pisón mecánico (bailarina) en capas de 20 cm utilizando  material de banco (FILTRO), incluye agua,  traspaleo, extendido y acarreo a una distancia de 20.00 m. (Medir compacto)","m3",118.13,null,null,0,"%"]
[136,"E05-0225","Suministro y RELLENO de material inerte para BASE HIDRÁULICA compactado al 95% de su PVSM con equipo mecánico en capas de 20 cm de espesor, incluye acarreo a cualquier distancia, agua, papeos y extendido. Mezcla al 100% a base de material pétreo clasificado de 1 1/2\" a finos y tepetate en proporción 80:20. (Medir compacto)","m3",177.18,null,null,0,"%"]
[null,null,null,"SUBTOTAL DE TERRACERÍAS:",null,null,null,{"$f":"SUM(H262:H264)","v":0}]
["Nombre de la empresa",null,null,null,null,"Representante legal"]
[]
["PAR0019",null,"PAVIMENTOS"]
[137,"E12-055C","PISO de CONCRETO hidráulico premezclado SIMPLE f'c=250 kg/cm2 de 17.5 cm de espesor, tamaño máximo del agregado 3/4\" extendida con regla vibratoria, incluye cimbrado en fronteras, colocado, vibrado, membrana de curado y acabado con cepillo de textura de alambre plano de 3/4\" de separación, corte con disco tanto longitudinal como transversalmente en todas sus juntas en un promedio de 3.50 x 3.50 m, todas las juntas deberán ser selladas con sellador de poliuretano autonivelante, cintilla de respaldo, limpieza de juntas con cepillo de alambre, sopleteado con aire a presión, primer y sellador, pasajuntas de redondo liso de 46 cm de largo y 3/4\" de diámetro a cada 30 cm, materiales y mano de obra.","m2",318.36,null,null,{"$f":"ROUND(E269*G269,2)","v":0},"%"]
[138,"E10-ADOQ01","Suministro y colocación de ADOCRETO de CONCRETO tipo CUADRADO en color NATURAL de 0.20 x 0.20 m y 0.08 m de espesor con una resistencia del concreto a la compresión de 250 kg/cm2, incluye: trazo, acarreos de material a cualquier distancia, cama de arena de 3 cm de espesor promedio, junteado con arena cernida, barrido de la superficie y retiro de material sobrante fuera de la obra.","m2",106.36,null,null,0,"%"]
[139,"E25-0011","Suministro y aplicación a cualquier distancia de RIEGO DE IMPREGNACIÓN a razón de 1.5 lt/m2 con emulsión catiónica de ROMPIMIENTO RÁPIDO ECR-60, incluye poreo con arena negra volcánica.","m2",131.57,null,null,0,"%"]
[140,"E25-005","BARRIDO a cualquier distancia por medios mecánicos de base, carpeta o sello para aplicación de riego de impregnación, riego de sello o de sobrante de gravilla.","m2",131.57,null,null,0,"%"]
[141,"E25-006","Suministro y aplicación a cualquier distancia de RIEGO DE SELLO con emulsión asfáltica catiónica de ROMPIMIENTO RÁPIDO ECR-60 a razón de 1.5 lt/m2 con 0.01 m3/m2 de gravilla.","m2",131.57,null,null,0,"%"]
[142,"E25-007","Suministro y aplicación a cualquier distancia de RIEGO DE LIGA con emulsión asfáltica catiónica de ROMPIMIENTO RÁPIDO ECR-60 a razón de 1.5 lt/m2.","m2",131.57,null,null,0,"%"]
[143,"E25-CARP05","CARPETA ASFÁLTICA de 5 cm de espesor compacto norma SCT N-CTR-CAR-1-04-006/14, tendida en caliente con FINISHER a cualquier distancia, incluye concreto asfáltico con agregados de 3/4\" a finos, cemento asfáltico AC-20 y compactado al 100% de su PVSM prueba MARSHALL.","m2",131.57,null,null,0,"%"]
[null,null,null,"SUBTOTAL DE PAVIMENTOS:",null,null,null,{"$f":"SUM(H269:H275)","v":0}]
[]
["PAR0020",null," JARDINERÍA"]
[144,"E26-002","Suministro y colocación de TIERRA POLVILLA para jardines, incluye acarreos a cualquier distancia, tendido y preparado para recibir pasto.","m3",62.4,null,null,{"$f":"ROUND(E279*G279,2)","v":0},"%"]
[145,"E26-0025","Suministro y colocación de PASTO en ROLLO  tipo WASHINGTON sobre superficies planas, incluye acarreos a cualquier distancia.","m2",624,null,null,0,"%"]
[146,"E26-ARBOL01","Suministro y colocación de árbol LIQUIDÁMBAR (liquidámbar styraciflua) de 2.00 a 3.00 m de altura, incluye tutores de madera de 3a, tierra para jardín, riego y mantenimiento por dos semanas.","pza",15,null,null,0,"%"]
[147,"E26-ARBOL02","Suministro y colocación de árbol JACARANDA (jacaranda mimosifolia) de 2.00 a 3.00 m de altura, incluye tutores de madera de 3a, tierra para jardín, riego y mantenimiento por dos semanas.","pza",10,null,null,0,"%"]
[148,"E26-ARBOL03","Suministro y colocación de árbol FRESNO COMÚN (fraxinus excelsior) de 2.00 a 3.00 m de altura, incluye tutores de madera de 3a, tierra para jardín, riego y mantenimiento por dos semanas.","pza",10,null,null,0,"%"]
[null,null,null,"SUBTOTAL DE  JARDINERÍA:",null,null,null,{"$f":"SUM(H279:H283)","v":0}]
[]
[]
[]
[]
[]
[]
["Nombre de la empresa",null,null,null,null,"Representante legal"]
[]
["PAR0021",null,"LIMPIEZAS"]
[149,"E50-003","LIMPIEZA a detalle de PISOS de CEMENTO y CERÁMICO con cepillo, agua, ácido clorhídrico y/o jabón a cualquier nivel.","m2",1178.8800000000001,null,null,{"$f":"ROUND(E294*G294,2)","v":0},"%"]
[150,"E50-004","LIMPIEZA a detalle de VIDRIOS y CRISTALES con agua, ácido clorhídrico y/o jabón por ambos lados a cualquier nivel y altura.","m2",37.200000000000003,null,null,0,"%"]
[151,"E50-006","LIMPIEZA a detalle de MUEBLES de BAÑO y/o cocina con agua y jabón en cualquier nivel.","pza",2,null,null,0,"%"]
[null,null,null,"SUBTOTAL DE LIMPIEZAS:",null,null,null,{"$f":"SUM(H294:H296)","v":0}]
[]
[]
[]
[]
[]
[]
[]
[]
[]
[]
[]
[]
[]
[]
[]
[]
[]
[]
[]
[]
[]
[]
[]
[]
[]
[]
[]
[]
[]
[]
[]
[]
[]
[]
[]
[]
[]
[]
[]
[]
[]
[]
[]
[]
[]
[]
["Nombre de la empresa",null,null,null,null,"Representante legal"]